bitfinex/quotes_ETHUSD_20251116
["timestamp","ask_amount","ask_price","bid_price","bid_amount"]
[1763332762932,0.002,3093.5,3093.4,0.5914]
[1763332763738,0.002,3093.5,3093.4,0.2957]
[1763332765306,0.002,3093.5,3093.4,3.18021852]
[1763332766306,0.1861,3093.9,3093.4,3.18021852]
[1763332766614,0.1861,3093.9,3093.8,2.30771156]
[1763332766812,0.4695,3093.5,3093.4,2.88451852]
[1763332767213,0.9661,3093.5,3093.4,2.88451852]
[1763332768131,0.4695,3093.5,3093.4,2.88451852]
[1763332770551,0.9661,3093.5,3093.4,2.88451852]
[1763332772167,0.4695,3093.5,3093.4,2.88451852]
[1763332773675,0.1861,3093.9,3093.4,3.46967037]
[1763332773970,0.002,3093.5,3093.4,3.46967037]
[1763332774176,0.002,3093.5,3093.4,0.28945185]
[1763332774333,0.4715,3093.5,3093.4,0.001]
[1763332774533,0.002,3093.5,3093.4,0.2967]
[1763332776341,1.8164408,3093.9,3093.4,0.2967]
[1763332776675,0.4966,3093.8,3093.5,2.88626713]
[1763332777387,0.4695,3093.6,3093.5,2.88626713]
[1763332777791,0.9661,3093.6,3093.5,2.88626713]
[1763332778489,2.0998408,3093.6,3093.5,2.88626713]
[1763332779052,2.0998408,3093.6,3093.4,0.001]
[1763332779391,0.9661,3093.5,3093.4,2.88726713]
[1763332781390,0.9661,3093.5,3093.4,0.001]
[1763332786367,0.4695,3093.5,3093.4,0.001]
[1763332787223,4.91523577,3093.7,3093.4,0.001]
[1763332787424,5.57146935,3093.7,3093.5,2.89354841]
[1763332788016,0.65623358,3093.7,3093.5,2.89354841]
[1763332788216,1.6471,3093.9,3093.5,2.89354841]
[1763332788433,2.7808408,3093.9,3093.5,2.89354841]
[1763332788639,0.4695,3093.6,3093.5,2.89354841]
[1763332789502,0.5421,3093.6,3093.5,2.89354841]
[1763332789839,0.5421,3093.6,3093.4,2.89454841]
[1763332790146,0.4655,3093.5,3093.4,2.89454841]
[1763332790330,0.4655,3093.5,3093.4,0.001]
[1763332790905,0.4655,3093.5,3093.4,2.89436184]
[1763332791442,0.542,3093.5,3093.4,2.89436184]
[1763332792313,0.4675,3093.5,3093.4,0.001]
[1763332793117,1.12679766,3093.5,3093.4,0.001]
[1763332793428,9.50974198,3093.5,3093.4,0.001]
[1763332794206,9.50974198,3093.5,3093.4,2.31490429]
[1763332795211,9.50974198,3093.5,3093.4,0.001]
[1763332800326,8.66053846,3093.5,3093.4,0.001]
[1763332800616,0.002,3093.5,3093.4,0.9302]
[1763332800931,1.1337408,3093.9,3093.4,3.81880206]
[1763332801113,4.91523577,3093.7,3093.4,3.36190206]
[1763332801313,4.91523577,3093.7,3093.0,6.92414293]
[1763332801314,0.248,3093.5,3093.0,6.92414293]
[1763332801519,1.5392448,3093.1,3093.0,0.001]
[1763332801745,2.00405168,3093.1,3093.0,0.001]
[1763332801934,2.48315168,3093.1,3093.0,0.001]
[1763332802267,2.48315168,3093.1,3093.0,1.15751805]
[1763332802474,0.405504,3092.9,3092.7,1.73576908]
[1763332802766,0.405504,3092.7,3092.6,1.73576908]
[1763332802961,6.45448057,3092.7,3092.6,1.73576908]
[1763332803174,1.5392448,3092.6,3092.5,1.73676908]
[1763332803471,1.5419448,3092.6,3092.5,1.73676908]
[1763332803763,1.5392448,3092.6,3092.5,2.66596908]
[1763332803967,1.461,3092.7,3092.5,0.9302]
[1763332804169,1.866504,3092.7,3092.6,0.9292]
[1763332805039,1.866504,3092.7,3092.6,0.4723]
[1763332807977,1.866504,3092.7,3092.5,0.001]
[1763332808280,6.52468057,3092.6,3092.5,0.001]
[1763332812271,6.99968057,3092.6,3092.5,0.001]
[1763332812485,6.99968057,3092.6,3092.5,1.73080574]
[1763332812855,6.99968057,3092.6,3092.5,0.001]
[1763332815560,0.410304,3092.4,3092.2,0.001]
[1763332815858,0.410304,3092.4,3091.5,2.30753363]
[1763332815859,1.5392448,3091.9,3091.5,0.001]
[1763332816090,11.32063577,3092.0,3091.5,0.001]
[1763332816091,6.69148057,3091.7,3091.5,0.001]
[1763332816396,13.93818505,3091.7,3091.5,0.001]
[1763332816598,1.5441448,3091.6,3091.2,0.001]
[1763332816896,6.49998057,3091.4,3091.2,0.001]
[1763332817079,6.85208505,3091.4,3091.2,0.001]
[1763332817288,7.35118505,3091.4,3091.2,0.001]
[1763332818064,13.75118505,3091.4,3091.0,0.001]
[1763332818353,13.75118505,3091.4,3090.8,0.001]
[1763332818354,0.405504,3090.9,3090.8,0.001]
[1763332818566,0.597804,3090.9,3090.8,0.001]
[1763332818766,9.25229518,3090.9,3090.8,0.001]
[1763332819458,9.65067241,3090.9,3090.8,0.001]
[1763332819703,10.00277689,3090.9,3090.8,0.001]
[1763332823405,1.5392448,3090.7,3090.6,0.001]
[1763332823605,7.9840448,3090.7,3090.6,0.001]
[1763332823793,8.4832448,3090.7,3090.6,0.001]
[1763332826898,8.88162203,3090.7,3090.6,0.001]
[1763332829826,8.38722203,3090.7,3090.6,0.001]
[1763332829985,8.4840448,3090.7,3090.6,0.001]
[1763332832438,7.9888448,3090.7,3090.6,0.001]
[1763332833024,7.9382448,3090.7,3090.6,0.001]
[1763332833229,7.5327408,3090.7,3090.6,0.4834]
[1763332833547,7.5327408,3090.7,3090.6,0.9738]
[1763332833704,7.9382448,3090.7,3090.6,0.9738]
[1763332839063,12.86519267,3090.7,3090.6,0.9738]
[1763332841057,6.399,3090.7,3090.6,0.9738]
[1763332841257,0.002,3090.9,3090.6,0.9738]
[1763332841434,0.002,3090.9,3090.8,0.4824]
[1763332841635,6.46819267,3090.9,3090.8,0.4824]
[1763332844052,1.5392448,3090.8,3090.7,1.7319341]
[1763332844252,1.5392448,3090.8,3090.7,0.4904]
[1763332844467,1.5392448,3090.8,3090.7,0.9728]
[1763332844973,1.5392448,3090.8,3090.7,0.4824]
[1763332845888,2.0052448,3090.8,3090.6,2.30753363]
[1763332846041,6.55009267,3090.7,3090.6,0.001]
[1763332846242,7.01219267,3090.7,3090.6,0.001]
[1763332846649,13.41119267,3090.7,3090.6,0.001]
[1763332846954,2.79402651,3090.6,3090.4,1.74275873]
[1763332847149,0.451404,3090.5,3090.4,0.001]
[1763332847379,8.4838448,3090.5,3090.4,1.74275873]
[1763332847582,8.4838448,3090.5,3090.4,0.001]
[1763332850169,13.41079267,3090.5,3090.4,0.001]
[1763332852483,7.9372448,3090.4,3090.3,0.001]
[1763332852778,8.4057448,3090.4,3090.3,0.001]
[1763332854097,9.8687448,3090.4,3090.3,0.001]
[1763332854249,1.6205448,3090.3,3090.1,1.68977159]
[1763332854444,1.5392448,3090.1,3090.0,0.001]
[1763332854671,1.6255448,3090.1,3090.0,0.001]
[1763332854985,8.4833448,3090.1,3090.0,0.001]
[1763332855582,13.41029267,3090.1,3090.0,0.001]
[1763332857047,8.4833448,3090.1,3090.0,0.001]
[1763332857252,13.41029267,3090.1,3090.0,0.001]
[1763332859892,8.0235448,3090.1,3090.0,0.001]
[1763332860191,8.0235448,3090.1,3089.5,0.001]
[1763332860192,0.405504,3089.7,3089.5,0.001]
[1763332860394,6.46619267,3089.6,3089.5,0.001]
[1763332860550,6.46619267,3089.6,3089.5,0.4818]
[1763332860751,6.46619267,3089.6,3089.5,3.26753363]
[1763332861090,6.46619267,3089.6,3089.5,0.4802]
[1763332862005,3.0022448,3089.6,3089.5,0.961]
[1763332862304,3.0022448,3089.6,3089.5,3.26753363]
[1763332863505,3.0022448,3089.6,3089.5,0.961]
[1763332863735,3.0022448,3089.6,3089.5,0.4802]
[1763332865053,1.5392448,3089.3,3088.4,0.1953]
[1763332865263,1.5392448,3088.4,3087.5,3.36940206]
[1763332865536,1.5392448,3088.0,3087.5,0.4808]
[1763332865842,6.46619267,3087.6,3087.5,0.4808]
[1763332866230,6.46619267,3087.6,3087.5,0.96]
[1763332866588,0.405504,3087.4,3087.1,0.4808]
[1763332866875,6.46619267,3087.2,3087.1,0.4808]
[1763332867241,6.46619267,3087.2,3087.1,0.4792]
[1763332867431,6.46619267,3087.2,3087.1,0.96]
[1763332868850,6.46619267,3087.2,3087.1,0.4792]
[1763332869033,1.5392448,3087.1,3086.6,0.1953]
[1763332869371,1.1337408,3087.0,3086.8,0.4808]
[1763332869573,1.1337408,3087.0,3086.6,0.1953]
[1763332869758,1.1337408,3087.0,3086.6,0.6761]
[1763332869959,1.1337408,3087.0,3086.6,0.1953]
[1763332870537,5.7308291,3087.1,3086.4,0.1953]
[1763332870538,1.5392448,3086.7,3086.4,0.1953]
[1763332870937,1.5392448,3086.7,3086.6,0.4792]
[1763332872479,1.5392448,3086.7,3086.3,0.4808]
[1763332872480,2.48302203,3086.7,3086.0,0.1953]
[1763332872772,2.48302203,3086.7,3084.6,4.03454087]
[1763332872773,1.5392448,3086.0,3085.7,0.6761]
[1763332872973,0.405504,3085.8,3085.7,0.6761]
[1763332873178,0.405504,3085.8,3084.0,4.22984087]
[1763332873179,0.491104,3085.8,3084.3,2.88860206]
[1763332873338,1.5392448,3085.8,3085.7,0.4792]
[1763332873538,3.0032448,3085.8,3085.7,0.4792]
[1763332873755,3.0032448,3085.8,3084.0,0.1953]
[1763332873756,0.4792,3085.4,3083.5,7.11844293]
[1763332873994,0.405504,3083.8,3083.5,0.1953]
[1763332874192,1.1337408,3084.4,3083.7,0.4792]
[1763332874367,1.464,3084.3,3083.8,0.4808]
[1763332874568,0.89762138,3084.4,3083.8,0.4808]
[1763332874798,1.30312538,3084.4,3084.3,0.6745]
[1763332875100,2.5977408,3084.4,3084.3,0.6745]
[1763332875306,2.5977408,3084.4,3084.3,1.1553]
[1763332877876,1.464,3084.4,3084.3,1.1553]
[1763332878271,1.464,3084.5,3084.3,1.1553]
[1763332878581,1.464,3084.5,3084.4,0.4533]
[1763332878784,1.464,3084.5,3084.4,0.9106]
[1763332879668,0.405504,3085.2,3084.4,0.9106]
[1763332879861,0.76428805,3085.5,3085.1,0.6477]
[1763332880094,0.76428805,3085.5,3085.4,0.4573]
[1763332880301,3.76853285,3085.5,3085.4,0.4573]
[1763332881602,1.5392448,3085.4,3085.1,0.1904]
[1763332881760,0.405504,3085.4,3085.1,0.6451]
[1763332881964,1.16979205,3085.4,3085.1,0.6451]
[1763332882289,1.16979205,3085.4,3085.3,0.481]
[1763332882797,1.16979205,3085.4,3085.3,0.9357]
[1763332890578,0.76428805,3085.4,3085.3,0.9357]
[1763332890783,1.465,3085.9,3085.3,0.9357]
[1763332891081,1.465,3085.9,3085.4,0.4547]
[1763332891295,1.465,3085.9,3085.8,0.481]
[1763332891696,1.465,3085.9,3085.8,0.9357]
[1763332892891,0.76428805,3086.7,3085.8,0.9357]
[1763332893212,1.465,3086.6,3086.3,0.481]
[1763332893413,1.465,3086.6,3085.9,0.4547]
[1763332893580,1.465,3086.6,3086.5,0.6674]
[1763332894007,0.76428805,3087.2,3086.5,1.1221]
[1763332894315,1.465,3087.5,3087.1,0.6674]
[1763332894836,1.465,3087.5,3087.4,0.481]
[1763332895197,1.465,3087.5,3087.4,0.9357]
[1763332896050,2.22928805,3087.5,3087.1,0.1864]
[1763332896258,0.76428805,3087.4,3087.1,0.1864]
[1763332897020,0.76428805,3087.4,3086.9,0.4547]
[1763332897536,0.405504,3087.3,3086.6,0.4547]
[1763332897741,1.16979205,3087.3,3086.6,0.4547]
[1763332897936,0.76428805,3087.2,3086.6,0.4547]
[1763332900213,0.405504,3087.1,3086.6,0.4547]
[1763332900414,0.76428805,3087.0,3086.6,0.4547]
[1763332900613,0.76428805,3087.0,3086.5,0.1864]
[1763332900814,0.76428805,3087.0,3086.0,0.1864]
[1763332900815,0.405504,3086.5,3086.0,0.1864]
[1763332901071,0.405504,3086.3,3085.6,0.4547]
[1763332901367,0.405504,3086.0,3085.3,2.18557264]
[1763332901647,1.16979205,3086.0,3085.3,0.4547]
[1763332901848,0.405504,3085.8,3085.1,0.1904]
[1763332902220,0.405504,3085.6,3085.1,0.1904]
[1763332902634,0.405504,3085.6,3085.1,0.6451]
[1763332903027,0.405504,3085.6,3085.2,0.4547]
[1763332904557,1.16979205,3085.6,3085.1,0.1904]
[1763332904715,0.405504,3085.4,3084.8,0.4547]
[1763332904920,1.16979205,3085.4,3084.8,0.4547]
[1763332905149,0.76428805,3085.3,3084.8,0.4547]
[1763332905851,0.405504,3085.2,3084.8,0.4547]
[1763332906054,0.405504,3085.2,3084.4,1.73187264]
[1763332906055,1.16979205,3085.2,3084.4,1.73187264]
[1763332906257,1.16979205,3085.2,3084.5,2.18557264]
[1763332906454,1.16979205,3085.2,3084.5,0.4547]
[1763332906917,0.76428805,3085.1,3084.5,0.4547]
[1763332907854,0.405504,3085.0,3084.5,0.4547]
[1763332908017,0.4875,3084.6,3084.4,0.001]
[1763332908219,1.65319205,3084.5,3084.4,0.001]
[1763332909039,1.72949205,3084.5,3084.4,0.001]
[1763332910431,1.65319205,3084.5,3084.4,0.001]
[1763332910674,0.182,3085.9,3084.4,0.9367]
[1763332910675,0.35217605,3085.1,3084.4,0.9367]
[1763332910828,0.4642,3085.8,3085.0,0.481]
[1763332911023,0.405504,3085.7,3085.0,0.481]
[1763332911525,0.405504,3085.6,3085.0,0.481]
[1763332912743,0.4729,3085.7,3085.0,0.481]
[1763332912945,0.4729,3085.7,3085.1,0.1952]
[1763332913155,0.405504,3085.6,3085.1,0.1952]
[1763332913671,0.6549,3085.9,3085.1,0.1952]
[1763332913872,1.465,3085.5,3085.1,0.1952]
[1763332914077,1.465,3085.5,3084.9,0.4777]
[1763332915139,0.182,3085.9,3085.4,0.6597]
[1763332915460,1.465,3085.8,3085.4,0.6597]
[1763332915765,1.465,3085.8,3085.5,0.4777]
[1763332915959,0.4729,3086.7,3085.7,0.4645]
[1763332916268,0.405504,3086.5,3085.7,0.4645]
[1763332916764,0.878404,3086.5,3085.7,0.4645]
[1763332916924,0.002,3086.1,3085.7,0.4645]
[1763332918074,0.002,3086.1,3085.4,0.1952]
[1763332918236,0.4749,3086.1,3085.4,0.1952]
[1763332920106,0.405504,3086.0,3085.4,0.1952]
[1763332920664,0.405504,3085.8,3085.2,0.6729]
[1763332923430,0.405504,3085.8,3085.2,1.92607264]
[1763332923639,0.405504,3085.8,3085.3,0.4777]
[1763332925139,0.405504,3085.8,3085.2,1.92607264]
[1763332925594,0.405504,3085.8,3085.3,1.73087264]
[1763332926118,0.405504,3085.8,3085.3,2.20857264]
[1763332926488,0.405504,3085.8,3085.4,1.73087264]
[1763332927203,0.405504,3085.8,3085.5,1.73087264]
[1763332927592,0.407504,3086.1,3085.7,0.4645]
[1763332927792,1.465,3086.0,3085.8,0.4645]
[1763332927997,1.465,3086.0,3085.6,0.4777]
[1763332928194,1.465,3086.0,3085.6,1.73087264]
[1763332928595,1.9379,3086.0,3085.6,1.73087264]
[1763332929293,0.1924,3085.9,3085.7,1.73087264]
[1763332929497,0.1924,3085.9,3085.6,1.73087264]
[1763332930016,1.465,3085.8,3085.7,1.73087264]
[1763332930321,1.465,3085.8,3085.3,2.785348]
[1763332930489,1.465,3085.8,3085.4,2.785348]
[1763332930690,1.465,3085.8,3085.4,2.307648]
[1763332931231,1.465,3085.8,3085.5,2.307648]
[1763332933102,1.465,3085.7,3085.5,2.307648]
[1763332933700,1.870504,3085.7,3085.6,0.4645]
[1763332934529,1.870504,3085.7,3085.5,2.307648]
[1763332935323,1.870504,3085.7,3085.6,0.4645]
[1763332935831,1.465,3085.7,3085.6,3.249848]
[1763332936139,1.465,3085.7,3085.6,0.9422]
[1763332937549,0.002,3086.1,3085.7,0.4921]
[1763332937752,0.002,3086.1,3086.0,0.4921]
[1763332938151,0.002,3086.1,3086.0,3.84930206]
[1763332938547,0.002,3086.1,3086.0,0.9607]
[1763332940438,0.002,3086.4,3086.1,1.1409]
[1763332940642,0.002,3086.4,3086.3,0.4921]
[1763332941038,0.002,3086.5,3086.3,1.47824409]
[1763332941240,1.465,3087.3,3086.4,0.4921]
[1763332941463,1.465,3087.3,3087.1,2.32135937]
[1763332941766,1.465,3087.3,3087.2,2.97065937]
[1763332942126,1.465,3087.3,3086.3,4.55208496]
[1763332942127,1.465,3087.3,3086.9,2.90169921]
[1763332942327,0.405504,3087.2,3086.9,2.32118722]
[1763332942768,0.0627,3087.0,3086.9,2.32118722]
[1763332943338,0.0627,3087.0,3086.8,2.32118722]
[1763332943739,0.0627,3087.0,3086.7,2.32118722]
[1763332944340,0.468204,3086.8,3086.6,2.32118722]
[1763332944544,0.405504,3086.8,3086.7,1.73926092]
[1763332944958,0.468204,3086.8,3086.6,1.73926092]
[1763332945372,0.468204,3086.7,3086.6,1.73926092]
[1763332945765,0.405504,3086.6,3086.4,1.73926092]
[1763332945961,0.405504,3086.6,3086.5,1.73926092]
[1763332946166,0.405504,3086.8,3086.5,1.73926092]
[1763332946340,0.182,3086.9,3086.5,1.73926092]
[1763332946341,0.865204,3086.6,3086.5,1.73926092]
[1763332946537,0.865204,3086.6,3086.2,1.73926092]
[1763332946538,0.405504,3086.5,3086.2,1.73926092]
[1763332946738,0.468204,3086.3,3086.1,1.73926092]
[1763332946944,0.405504,3086.3,3086.0,1.73926092]
[1763332947164,0.405504,3086.3,3085.6,2.32118722]
[1763332947165,0.405504,3086.1,3085.9,1.73926092]
[1763332947662,0.961904,3086.0,3085.9,1.73926092]
[1763332948882,0.861604,3086.0,3085.9,1.73926092]
[1763332949991,0.405504,3086.0,3085.9,2.20556092]
[1763332950188,0.405504,3086.0,3085.9,2.67126092]
[1763332950683,0.405504,3086.0,3085.9,2.67226092]
[1763332950840,0.405504,3086.0,3085.9,2.20656092]
[1763332951040,0.405504,3086.0,3085.9,2.67226092]
[1763332952344,0.865204,3086.0,3085.9,1.74026092]
[1763332952972,0.405504,3086.0,3085.9,2.20656092]
[1763332953381,0.405504,3086.0,3085.9,0.933]
[1763332954849,0.405504,3086.0,3085.9,2.67523195]
[1763332955448,0.405504,3086.0,3085.9,1.74323195]
[1763332955890,0.475604,3086.0,3085.9,1.74323195]
[1763332956093,0.405504,3086.0,3085.9,1.74323195]
[1763332956302,1.870504,3086.0,3085.9,1.74323195]
[1763332956463,1.870504,3086.0,3085.9,2.20953195]
[1763332956783,1.940604,3086.0,3085.9,1.74323195]
[1763332956982,1.870504,3086.0,3085.9,2.67523195]
[1763332957691,1.870504,3086.0,3085.9,2.20953195]
[1763332958392,1.940604,3086.0,3085.9,1.74323195]
[1763332959193,1.870504,3086.0,3085.9,2.20953195]
[1763332960194,1.870504,3086.0,3085.9,0.933]
[1763332960508,0.405504,3086.0,3085.9,0.933]
[1763332960670,1.870504,3086.0,3085.9,0.933]
[1763332964399,1.870504,3086.0,3085.9,0.001]
[1763332964709,1.870504,3086.0,3085.9,0.933]
[1763332964868,1.870504,3086.0,3085.9,0.4673]
[1763332965409,1.870504,3086.0,3085.9,0.933]
[1763332967821,1.870504,3086.0,3085.9,0.4673]
[1763332968204,1.870504,3086.0,3085.9,0.933]
[1763332968444,2.330204,3086.0,3085.9,0.001]
[1763332968649,1.870504,3086.0,3085.9,0.4673]
[1763332968842,1.870504,3086.0,3085.9,0.933]
[1763332972528,1.870504,3086.0,3085.9,3.25418722]
[1763332972932,1.870504,3086.0,3085.9,0.933]
[1763332973442,1.870504,3086.0,3085.9,3.25418722]
[1763332973728,1.938004,3086.0,3085.9,2.33158724]
[1763332974231,1.938004,3086.0,3085.9,3.26128724]
[1763332974232,1.870504,3086.0,3085.9,3.26128724]
[1763332974429,1.870504,3086.0,3085.9,0.4772]
[1763332974625,1.938004,3086.0,3085.9,0.001]
[1763332975734,1.870504,3086.0,3085.9,0.001]
[1763332976545,2.423004,3086.0,3085.9,0.001]
[1763332976746,1.938004,3086.0,3085.9,0.001]
[1763332983750,2.24319579,3086.0,3085.9,0.001]
[1763332984670,2.17569579,3086.0,3085.9,0.9307]
[1763332984968,2.24319579,3086.0,3085.9,0.001]
[1763332987464,2.17569579,3086.0,3085.9,0.4772]
[1763332988051,2.17569579,3086.0,3085.9,0.9307]
[1763332988253,2.17569579,3086.0,3085.9,0.4772]
[1763332989785,2.17569579,3086.0,3085.9,0.9307]
[1763332990780,2.17569579,3086.0,3085.9,0.4772]
[1763332994059,2.17569579,3086.0,3085.9,3.37889921]
[1763332994371,2.17569579,3086.0,3085.9,0.4772]
[1763332995372,2.17569579,3086.0,3085.9,0.9307]
[1763332995746,2.17569579,3086.0,3085.9,3.83239921]
[1763332996067,2.17569579,3086.0,3085.9,0.4772]
[1763332996770,0.71069579,3086.0,3085.9,0.4772]
[1763332996979,2.17569579,3086.0,3085.9,0.4772]
[1763332999700,1.870504,3086.0,3085.9,0.4772]
[1763333000006,2.17575433,3086.0,3085.9,0.4772]
[1763333000297,0.71075433,3086.0,3085.9,0.4772]
[1763333000503,2.17575433,3086.0,3085.9,0.9453]
[1763333000869,2.17575433,3086.0,3085.9,0.4772]
[1763333003504,1.465,3086.0,3085.9,4.17238913]
[1763333003683,1.465,3086.0,3085.9,1.27068992]
[1763333004084,1.465,3086.0,3085.9,5.30523079]
[1763333004325,0.002,3086.5,3085.9,10.24547686]
[1763333004625,1.467,3086.5,3086.4,3.5751508]
[1763333004909,1.467,3086.5,3086.4,3.93266588]
[1763333005085,1.467,3086.5,3086.4,1.46991508]
[1763333005407,1.467,3086.5,3086.4,4.03001955]
[1763333006902,0.002,3086.5,3086.4,4.03001955]
[1763333007310,0.002,3086.5,3086.4,1.1124]
[1763333008611,0.002,3086.5,3086.4,5.14694087]
[1763333009624,0.002,3086.5,3086.4,1.1124]
[1763333009806,0.002,3086.5,3086.4,2.12111869]
[1763333013520,0.002,3086.9,3086.4,2.12111869]
[1763333013845,0.002,3086.9,3086.8,0.4726]
[1763333014248,0.002,3086.9,3086.8,0.9282]
[1763333015535,0.30532076,3086.9,3086.8,0.9282]
[1763333015734,0.30532076,3086.9,3086.8,1.31100196]
[1763333018334,0.002,3086.9,3086.8,1.31100196]
[1763333018529,0.30532076,3086.9,3086.8,1.31100196]
[1763333019356,0.002,3086.9,3086.8,1.31100196]
[1763333019560,0.30532076,3086.9,3086.8,4.21082151]
[1763333019762,0.002,3086.9,3086.8,4.21082151]
[1763333020320,0.002,3086.9,3086.8,1.31100196]
[1763333021858,0.002,3086.9,3086.8,5.34554283]
[1763333022433,0.002,3087.2,3086.8,6.47928363]
[1763333022637,0.002,3087.3,3087.1,1.7905408]
[1763333022838,0.002,3087.3,3087.2,11.04923274]
[1763333023355,0.002,3087.6,3087.2,6.99455786]
[1763333023562,0.002,3087.9,3087.2,6.99455786]
[1763333023563,0.002,3088.0,3087.5,0.4726]
[1763333023726,0.002,3088.0,3087.9,0.4726]
[1763333023928,0.002,3088.0,3087.9,3.702434]
[1763333024229,0.002,3088.0,3087.9,1.26478491]
[1763333024450,0.092,3088.0,3087.7,2.89324909]
[1763333024652,0.405504,3087.8,3087.7,2.31471499]
[1763333024854,0.79819869,3087.8,3087.5,2.31471499]
[1763333025163,0.495504,3087.6,3087.5,2.31471499]
[1763333025323,0.79819869,3087.6,3087.5,2.31471499]
[1763333025524,1.25359869,3087.6,3087.5,2.31471499]
[1763333025760,1.25359869,3087.6,3087.4,2.31471499]
[1763333025963,0.76179469,3087.5,3087.2,2.31471499]
[1763333026161,0.405504,3087.3,3087.2,2.31471499]
[1763333026464,0.405504,3087.3,3086.7,2.89324909]
[1763333026465,1.25359869,3087.3,3087.1,2.31471499]
[1763333026628,0.70819869,3087.2,3087.1,2.31471499]
[1763333026826,1.17189869,3087.2,3087.1,2.31471499]
[1763333028565,0.405504,3087.1,3086.7,2.89324909]
[1763333028765,0.30269469,3087.0,3086.8,2.89324909]
[1763333029480,0.09,3086.9,3086.8,2.89324909]
[1763333029683,0.70819869,3087.0,3086.9,0.4726]
[1763333030586,0.70819869,3087.0,3086.9,3.36584909]
[1763333032185,1.17619869,3087.0,3086.9,2.89324909]
[1763333032683,1.17619869,3087.0,3086.9,2.90536799]
[1763333032888,0.405504,3086.9,3086.8,2.90536799]
[1763333033089,1.19099869,3086.9,3086.7,2.90536799]
[1763333033296,0.2539,3086.6,3086.5,2.90636799]
[1763333033494,0.55659469,3086.6,3086.5,0.001]
[1763333033703,0.890704,3086.6,3086.5,2.90994596]
[1763333033867,0.890704,3086.6,3086.5,2.32917514]
[1763333034505,0.890704,3086.6,3086.5,0.001]
[1763333034874,0.890704,3086.6,3086.5,1.74798513]
[1763333036508,0.890704,3086.6,3086.5,0.001]
[1763333036509,1.22038005,3086.6,3086.5,0.001]
[1763333039630,0.890704,3086.6,3086.5,0.001]
[1763333040428,2.354704,3086.6,3086.5,0.001]
[1763333048546,3.81812085,3086.6,3086.5,0.001]
[1763333050362,1.5392448,3086.5,3086.1,0.001]
[1763333050525,6.93986186,3086.2,3086.1,0.001]
[1763333050724,1.5392448,3086.1,3085.9,0.001]
[1763333050908,1.50577237,3086.0,3085.9,0.001]
[1763333051109,1.52297237,3086.0,3085.9,0.001]
[1763333052032,0.405504,3085.9,3085.8,0.001]
[1763333052229,7.77093023,3085.9,3084.5,1.74698513]
[1763333052430,0.405504,3085.5,3084.4,1.74798513]
[1763333052634,6.53646186,3085.3,3084.4,0.001]
[1763333052942,7.16873023,3085.3,3084.4,0.001]
[1763333053153,7.64933023,3085.3,3084.4,0.001]
[1763333054258,8.78465418,3085.3,3084.4,0.001]
[1763333054866,15.26715418,3085.3,3084.4,0.001]
[1763333055361,15.26715418,3085.3,3084.4,0.489]
[1763333055656,1.5392448,3085.2,3084.4,0.001]
[1763333055827,1.5392448,3084.7,3084.4,0.001]
[1763333056029,0.405504,3084.5,3084.4,0.001]
[1763333056228,0.70809632,3084.5,3084.4,0.001]
[1763333056532,0.70809632,3084.5,3084.4,0.4706]
[1763333057387,7.23785418,3084.5,3084.4,0.001]
[1763333057547,7.32365418,3084.5,3084.4,0.001]
[1763333058275,7.23785418,3084.5,3084.4,0.001]
[1763333058631,7.23785418,3084.5,3084.4,0.4706]
[1763333058632,1.84183712,3084.5,3084.4,0.4706]
[1763333059059,1.84183712,3084.5,3084.4,0.9313]
[1763333059534,1.84183712,3084.5,3084.4,0.4706]
[1763333059735,7.31985418,3084.5,3084.4,0.001]
[1763333060064,13.80209513,3084.5,3084.4,0.001]
[1763333061572,0.405504,3084.3,3084.0,0.001]
[1763333061784,1.5392448,3083.4,3082.5,1.74698513]
[1763333061951,1.5392448,3083.0,3082.5,1.74698513]
[1763333062146,0.405504,3082.8,3082.6,0.4644]
[1763333062348,0.70783727,3082.7,3082.6,0.4644]
[1763333062775,0.70783727,3082.7,3082.6,0.9509]
[1763333063183,0.70783727,3082.7,3082.6,0.4865]
[1763333063586,0.405504,3082.6,3082.4,0.4644]
[1763333063772,1.1337408,3082.8,3082.3,1.74698513]
[1763333063773,0.405504,3082.4,3082.3,1.74698513]
[1763333063961,0.70783727,3082.4,3082.3,2.23348513]
[1763333064471,1.19213727,3082.4,3082.0,0.1967]
[1763333064781,0.405504,3082.2,3082.0,0.1967]
[1763333064982,0.70783727,3082.1,3082.0,0.1967]
[1763333065192,0.405504,3082.0,3081.7,2.21138513]
[1763333065481,1.465,3082.9,3081.7,2.21138513]
[1763333065482,0.70783727,3081.9,3081.8,0.4644]
[1763333065851,0.70783727,3081.9,3081.8,0.9509]
[1763333066486,0.405504,3081.8,3081.3,1.74698513]
[1763333066688,0.405504,3081.3,3080.8,1.93718513]
[1763333066857,0.405504,3081.1,3080.8,1.93718513]
[1763333067200,0.405504,3080.9,3080.8,0.1902]
[1763333067401,0.70783727,3080.9,3080.8,0.1902]
[1763333067564,0.70783727,3080.9,3080.8,0.6767]
[1763333067902,1.25943727,3080.9,3080.0,0.188]
[1763333068102,0.405504,3080.7,3079.8,0.188]
[1763333068431,0.405504,3080.5,3079.5,0.188]
[1763333068554,0.405504,3080.3,3079.5,0.188]
[1763333068900,0.405504,3080.1,3079.5,0.188]
[1763333069057,1.43607407,3080.2,3078.7,1.74698513]
[1763333069058,0.405504,3079.5,3078.7,1.74698513]
[1763333069298,0.405504,3079.3,3078.7,0.4644]
[1763333069517,0.405504,3079.1,3078.8,0.4644]
[1763333069722,6.4825,3080.1,3078.8,0.4644]
[1763333069907,0.405504,3079.9,3078.8,0.4644]
[1763333070105,0.30001197,3080.0,3078.8,0.4644]